[Event "ESP-ch Teams Primera 2022"]
[Site "Sanxenxo Pontevedra"]
[Date "2022.09.19"]
[Round "3.4"]
[White "Franco Alonso, Alejandro"]
[Black "Martinez Ramirez, Erik"]
[Result "1-0"]
[ECO "A05"]
[WhiteElo "2432"]
[BlackElo "2181"]
[Annotator "TA"]
[PlyCount "53"]
[EventDate "2022.09.17"]
[EventType "team-tourn"]
[EventCountry "ESP"]
[SourceTitle "playchess.com"]
[Source "ChessBase"]
[SourceQuality "1"]
[TimeControl "5400+30"]

{[%evp 12,53,34,18,6,0,0,-15,-10,-6,31,0,0,-4,0,0,0,0,33,-29,-31,-16,94,100,212,176,523,512,577,544,1411,650,1746,1722,2212,1157,1105,1158,1154,1127,1100,1024,1785,1684]} 1. Nf3 Nf6 2. c4 g6 3. Nc3 d5 4. cxd5 Nxd5 5. Qb3 Nb6 6. d4 Bg7 7. e4 {CPLX 2.6 16 (Bc1-f4) (=16)} Bg4 {BESTDEEP. D90: Grünfeld: 4 Nf3 Bg7 sidelines.} 8. Bb5+ {CPLX 3.4 6 (d4-d5) (=11)} c6 {...Bxf3 is the strong threat. EASY} 9. Ng5 {CPLX 3.1} O-O {CPLX 4.0. The position is equal.} 10. Be2 {BESTDEEP} Bc8 {MISS-Bg4xe2 37 (Bg4xe2) (=9)} 11. Nf3 {CPLX 3.8 31 (h2-h4) (=11)} (11. h4 $5 {[%cal Rh4h5]}) 11... Bg4 {BESTDEEP} 12. Ng5 $36 {[%mdl 2048] White fights for an advantage. BESTDEEP} Bc8 {MISS-Bg4xe2 4 (Bg4xe2) (=7)} 13. Nf3 {CPLX 3.8 0 (h2-h4) (=8)} Bg4 {BESTDEEP} 14. Ng5 {BESTDEEP} Bc8 {MISS-Bg4xe2 33 (Bg4xe2) (=9)} 15. Be3 {[#] RELBLUND 62 (h2-h4) (=13)} (15. h4 $14) 15... Bxd4 $146 {EASY} ({Predecessor:} 15... h6 16. Nf3 Be6 17. Qc2 a5 18. O-O a4 19. Rfd1 a3 20. bxa3 Nc4 21. Bxc4 Bxc4 22. a4 Nd7 23. Rab1 Ba6 24. h3 Qa5 25. Qb3 Rad8 {0-1 (58) Agbabishvili,L (1954)-Allor,C (2154) Caleta 2013}) 16. Rd1 $1 {CPLX 4.0} c5 {RELBLUND 110 (e7-e5) (=18)} (16... e5 $11 {remains equal.}) 17. h4 $1 $16 {aiming for h5. White has more active pieces. DEEPSTRONG=>BLUNDERREACT} Nc6 {[#] CPLX 4.3 112 (Bc8-d7) (=27)} (17... Bd7 $16 {was worth a try.}) 18. h5 $1 $18 {Threatens to win with hxg6. DEEPSTRONG=>BLUNDERREACT} Qe8 $2 {CPLX 4.6 347 (Qd8-d6) (=54)} ({Less strong is} 18... Na5 19. Qc2 (19. Qb5 Nc6 $16)) (18... Qd6 {is tougher.}) 19. hxg6 {EASY. White is clearly winning.} hxg6 {RECAPT 65 (Bd4xe3) (=54)} 20. Nb5 {[%cal Re3d4] CPLX 4.3} c4 {[#] BEVAL 400 (Bd4-e5) (=79)} 21. Qa3 {MISSDEEP-Be3xd4 400 (Be3xd4) (=34)} (21. Bxd4 $142 $1 Nxd4 22. Qg3 Qxb5 23. Qh4) 21... Bxe3 {BEVAL 400 (Bd4-e5) (=101)} 22. Qxe3 {BEVAL} Nb4 {[#] BEVAL 400 (Kg8-g7) (=119)} 23. Qc3 $1 {[%csl Gh1,LRb4,LRc4][%cal Rc3h8] BEVAL 400 (Qe3-f4) (=54)} Nc2+ {BEVAL} 24. Kf1 {[%csl Gh1][%cal Rc3h8] BEVAL} Ne3+ {BEVAL} 25. fxe3 {[%csl Gh1][%cal Rc3h8] BEVAL} f6 {BEVAL} 26. Bxc4+ {BEVAL} e6 {BEVAL 400 (Nb6xc4) (=115)} 27. Nh7 {Weighted Error Value: White=0.27 (precise) /Black=0.78} 1-0

[Event "ESP-ch Teams Primera 2022"]
[Site "Sanxenxo Pontevedra"]
[Date "2022.09.19"]
[Round "3.5"]
[White "Bosque Ortega, Xavier"]
[Black "Gonzalez De La Torre, Santiago"]
[Result "0-1"]
[ECO "D02"]
[WhiteElo "2164"]
[BlackElo "2439"]
[Annotator "TA"]
[PlyCount "68"]
[EventDate "2022.09.17"]
[EventType "team-tourn"]
[EventCountry "ESP"]
[SourceTitle "playchess.com"]
[Source "ChessBase"]
[SourceQuality "1"]
[TimeControl "5400+30"]

{[%evp 9,68,0,0,0,0,14,11,0,0,0,0,-10,0,0,0,0,4,0,0,0,0,-35,-31,-42,-34,-46,-48,-51,-34,-81,-83,-290,-290,-290,-290,-291,-291,-291,-292,-280,-279,-334,-317,-375,-297,-291,-277,-381,-379,-505,-485,-1133,-960,-942,-896,-1428,-1434,-1430,-1410,-1396,-1295]} 1. d4 {[%emt 0:00:04]} Nf6 {[%emt 0:00:08]} 2. Nf3 {[%emt 0:00:08]} d5 {[%emt 0:00:47]} 3. Bf4 {[%emt 0:00:15]} c5 {[%emt 0:00:05]} 4. e3 {[%emt 0:00:19]} Qb6 {[%emt 0:00:07]} 5. Nc3 {[%emt 0:00:49]} a6 {[%emt 0:00:05] BESTDEEP} 6. a3 {[%emt 0:01:41] D02: 1 d4 d5 2 Nf3 sidelines, including 2...Nf6 3 g3 and 2...Nf6 3 Bf4.} Nc6 {[%emt 0:01:35] BESTDEEP} 7. dxc5 {[%emt 0:12:26] BESTDEEP} Qxc5 {[%emt 0:00:14] RECAPT} 8. Be2 {[%emt 0:00:41] CPLX 2.4 11 (Qd1-d2) (=4). The position is equal.} e6 {[%emt 0:06:41] CPLX 2.5} 9. O-O {[%emt 0:00:40] CPLX 2.5} Be7 {[%emt 0:00:05] [#] CPLX 2.6} 10. Rb1 $146 {[%emt 0:18:47][%cal Ob2b4] CPLX 2.6 10 (Be2-d3) (=4)} ({Predecessor:} 10. Bd3 O-O 11. h3 Nd7 12. e4 d4 13. b4 Qa7 14. Ne2 Bf6 15. Qd2 Nde5 16. Bxe5 Nxe5 17. Nxe5 Bxe5 {1-0 (35) Chazalette,J (2316)-Nenciulescu,S (2306) ICCF email 2012}) 10... b5 {[%emt 0:09:41] CPLX 2.6 10 (0-0) (=2)} 11. b4 {[%emt 0:09:53] BESTDEEP} Qb6 {[%emt 0:09:39] BESTDEEP} ({But not} 11... Qxc3 12. Rb3 Ne4 13. Rxc3 Nxc3 14. Qe1 Nxe2+ 15. Qxe2 $16) 12. a4 {[%emt 0:01:48][%cal Ra4b5] BESTDEEP} O-O {[%emt 0:00:12] CPLX 2.9 4 (Be7xb4) (=2)} 13. axb5 {[%emt 0:00:42] CPLX 3.0} Nxb4 {[%emt 0:00:08] BESTDEEP} 14. Na4 {[%emt 0:16:35] CPLX 2.9} Qa5 {[%emt 0:00:13] EASY} 15. c3 {[%emt 0:00:17] CPLX 3.3 35 (Rb1-a1) (=6)} axb5 {[%emt 0:00:07] EASY} 16. cxb4 {[%emt 0:00:14] CPLX 3.3} Qxa4 {[%emt 0:00:09] EASY} 17. Qd4 {[%emt 0:00:09] Threatens to win with Ra1. BESTDEEP} Bd7 {[%emt 0:05:29] CPLX 2.6} 18. Ne5 {[%emt 0:01:34] CPLX 2.6} h6 {[%emt 0:09:49] Against Bg5. BESTDEEP} 19. Qb6 {[%emt 0:15:41] CPLX 2.9 47 (Qd4-d3) (=7)} (19. Qd3 $15 {should be considered.}) 19... Rfb8 {[%emt 0:14:04] CPLX 3.1 0 (Bd7-e8) (=1)} 20. Nxd7 {[%emt 0:09:46] This move loses the game for White. RELBLUND 207 (Qb6-d4) (=21)} (20. Qd4 $17) 20... Rxb6 $19 {[%emt 0:00:09] EASY} 21. Nxb6 {[%emt 0:00:02] RECAPT} Qc2 {[%emt 0:00:06] CPLX 4.2} 22. Nxa8 {[%emt 0:00:24] BESTDEEP} Qxe2 {[%emt 0:00:05] EASY} 23. Rfe1 {[%emt 0:00:24] BESTDEEP} Qa2 {[%emt 0:01:56] CPLX 3.9} 24. Ra1 {[%emt 0:01:26] CPLX 3.8 0 (Na8-c7) (=16)} Qd2 {[%emt 0:00:09] CPLX 3.9 1 (Qa2-c4) (=1)} 25. Nc7 {[%emt 0:01:29] CPLX 3.6 55 (Re1-d1) (=18)} Ne4 {[%emt 0:00:08] CPLX 4.0} ({Stronger than} 25... Qxb4 26. Rab1 Qa5 27. Nxb5 $17) ({And not} 25... Bxb4 26. Nxb5 Ne4 27. Rf1 $17) 26. Bg3 {[%emt 0:00:34] CPLX 5.2 58 (Re1-f1) (=20)} Nc3 {[%emt 0:07:29] CPLX 4.1 78 (Be7xb4) (=4)} 27. Be5 {[%emt 0:02:10] BESTDEEP} Bxb4 {[%emt 0:00:04] ...Ne4 is the strong threat. CPLX 4.2} 28. Bxc3 {[%emt 0:01:39] CPLX 4.3 104 (Nc7-a6) (=23)} Bxc3 {[%emt 0:00:05] RECAPT} 29. Red1 {[%emt 0:00:50] [#] CPLX 4.0 126 (Ra1-b1) (=27)} Qe2 $1 {[%emt 0:00:05] CPLX 4.1. Black is clearly winning.} 30. Ra8+ {[%emt 0:01:58] CPLX 3.9 400 (Ra1-b1) (=42)} (30. Rab1 $142 b4 31. Rdc1) 30... Kh7 {[%emt 0:00:08][%cal Re2d1] LEGAL} 31. Rf1 {[%emt 0:00:30] BESTDEEP} Be5 {[%emt 0:00:28] And now ...Bxh2+ would win. EASY} 32. Ra7 {[%emt 0:00:36] [#] CPLX 4.5 400 (Nc7xb5) (=54)} Bxh2+ $1 {[%emt 0:00:09][%mdl 512] CPLX 4.3=>BLUNDERREACT} 33. Kxh2 {[%emt 0:00:30] RECAPT} Qxf1 {[%emt 0:00:05] EASY} 34. Nxb5 {[%emt 0:00:06] CPLX 3.2 0 (f2-f3) (=50)} Qxb5 {[%emt 0:00:06] Weighted Error Value: White=0.67/Black=0.05 (flawless)} 0-1

[Event "ESP-ch Teams Primera 2022"]
[Site "Sanxenxo Pontevedra"]
[Date "2022.09.19"]
[Round "3.6"]
[White "Buiza Prieto, Eihartze"]
[Black "Castillo Escario, Yolanda"]
[Result "1-0"]
[ECO "A13"]
[WhiteElo "2080"]
[BlackElo "2035"]
[Annotator "NA"]
[PlyCount "125"]
[EventDate "2022.09.17"]
[EventType "team-tourn"]
[EventCountry "ESP"]
[SourceTitle "playchess.com"]
[Source "ChessBase"]
[SourceQuality "1"]
[TimeControl "5400+30"]

1. c4 e6 2. Nf3 d5 3. g3 Nf6 4. Bg2 c6 5. b3 Nbd7 6. Bb2 Be7 7. O-O O-O 8. d4 b6 9. Nbd2 Bb7 10. Rc1 Rc8 11. Re1 Re8 12. Rf1 Rf8 13. Re1 Re8 14. Ne5 Nf8 15. e3 N6d7 16. a3 f6 17. Nd3 Bd6 18. e4 dxe4 19. Nxe4 Bc7 20. b4 e5 21. dxe5 Nxe5 22. Nxe5 fxe5 23. c5 Qd7 24. Nd6 Bxd6 25. Qxd6 bxc5 26. Qxc5 Ng6 27. Bxe5 Nxe5 28. Rxe5 Rxe5 29. Qxe5 Re8 30. Qc5 Rc8 31. Qxa7 Ra8 32. Qc5 Rxa3 33. Bxc6 Qxc6 34. Qxc6 Bxc6 35. Rxc6 Rb3 36. Rb6 Kf7 37. h3 Rb2 38. Kg2 h6 39. h4 h5 40. Kf3 g6 41. Ke3 Kg7 42. f3 Kh6 43. Rb7 Rg2 44. Kf4 Rh2 45. Rb6 Rh3 46. Rc6 Rh1 47. Rc4 Rg1 48. b5 Rb1 49. Rc5 Rb4+ 50. Ke5 Rb3 51. Ke4 Rb4+ 52. Kd5 Rb3 53. Kc6 Rxf3 54. b6 Rf6+ 55. Kc7 Rf7+ 56. Kc8 Rf8+ 57. Kb7 Rf3 58. Rg5 Rf7+ 59. Ka8 Rf6 60. Ka7 Rf3 61. b7 Ra3+ 62. Kb6 Rb3+ 63. Rb5 1-0

[Event "ESP-ch Teams Primera 2022"]
[Site "Sanxenxo Pontevedra"]
[Date "2022.09.19"]
[Round "3.7"]
[White "Cordova, Emilio"]
[Black "Bjerre, Jonas Buhl"]
[Result "1/2-1/2"]
[ECO "A33"]
[WhiteElo "2550"]
[BlackElo "2598"]
[Annotator "TA"]
[PlyCount "79"]
[EventDate "2022.09.17"]
[EventType "team-tourn"]
[EventCountry "ESP"]
[SourceTitle "playchess.com"]
[Source "ChessBase"]
[SourceQuality "1"]
[TimeControl "5400+30"]

{[%evp 13,79,0,0,0,0,-8,0,0,0,0,0,0,0,0,0,0,0,0,0,0,0,0,0,0,0,0,0,0,0,0,0,-8,-13,-18,-26,-29,-8,-12,-12,-10,-8,-8,-8,-8,-8,-8,-8,-10,-10,-10,-10,-25,-25,-25,-25,-25,-25,-25,-25,-25,-25,-25,-22,-22,-22,-22,-22,-22]} 1. Nf3 {[%emt 0:00:15][%cal Bg1f3,Bf3d4,Bd4b5][%mdl 32]} c5 {[%emt 0:00:10]} 2. c4 {[%emt 0:00:47]} Nc6 {[%emt 0:00:13]} 3. Nc3 {[%emt 0:01:35]} Nf6 {[%emt 0:00:21]} 4. d4 {[%emt 0:02:52]} cxd4 {[%emt 0:00:08]} 5. Nxd4 {[%emt 0:00:05]} e6 {[%emt 0:00:34]} 6. g3 {[%emt 0:01:33]} Qb6 {[%emt 0:02:02]} 7. Ndb5 {[%emt 0:00:09]} Ne5 {[%emt 0:03:02] aiming for ...Bc5.} 8. Bf4 {[%emt 0:04:45] BESTDEEP. A33: Symmetrical English: 2 Nf3 Nf6 3 d4 cxd4 4 Nxd4 e6 5 Nc3 Nc6.} Nfg4 {[%emt 0:01:50][%cal Oe5f3] [#] ( -> ...Nf3+!). BESTDEEP} 9. e3 {[%emt 0:00:33] Black must now prevent Be2. CPLX 3.4 8 (Qd1-a4) (=4)} a6 {[%emt 0:01:48] BESTDEEP} 10. h3 {[%emt 0:05:54] CPLX 3.6} axb5 {[%emt 0:02:33] EASY} 11. hxg4 {[%emt 0:00:38] EASY} Nxc4 {[%emt 0:00:45] CPLX 3.2} 12. Qb3 $1 {[%emt 0:00:05][%csl LRb5,LRc4] DEEPSTRONG} d5 $1 {[%emt 0:07:03] [#] And now ...b4 would win. DEEPSTRONG} 13. Bxc4 {[%emt 0:01:43] EASY} dxc4 {[%emt 0:00:35] RECAPT} 14. Qxb5+ {[%emt 0:00:23] EASY} Qxb5 {[%emt 0:00:59] RECAPT} 15. Nxb5 {[%emt 0:00:06] RECAPT} Ra5 {[%emt 0:06:30] BESTDEEP} 16. Nd6+ {[%emt 0:09:37] CPLX 2.2} Bxd6 {[%emt 0:00:16] EASY} 17. Bxd6 {[%emt 0:00:07] RECAPT} e5 {[%emt 0:08:06] BESTDEEP} 18. g5 {[%emt 0:01:19] BESTDEEP} Bg4 {[%emt 0:04:41] BESTDEEP} 19. Rh4 {[%emt 0:26:42] CPLX 2.1 0 (Bd6-b4) (=1)} h5 {[%emt 0:06:16] CPLX 2.4} 20. gxh6 {[%emt 0:08:43] EASY} Rxh6 {[%emt 0:01:07] RECAPT} 21. Rxh6 {[%emt 0:00:11] RECAPT} gxh6 $11 {[%emt 0:00:05][%mdl 4096] [#] Endgame KRB-KRB. RECAPT} 22. f4 $146 {[%emt 0:03:08] CPLX 2.0 8 (a2-a4) (=1)} ({Predecessor:} 22. Bb4 Rd5 {½-½ (22) Augustin,D-Guballa,J corr 1998}) 22... exf4 {[%emt 0:10:15] CPLX 2.1} 23. exf4 {[%emt 0:03:31] RECAPT 5 (Bd6xf4) (=1)} Rh5 {[%emt 0:04:58] EASY} 24. Rc1 {[%emt 0:00:19] EASY} b5 {[%emt 0:02:04] CPLX 2.0 21 (Rh5-h1) (=1)} 25. Be5 {[%emt 0:02:11] CPLX 2.0 4 (a2-a4) (=1)} Rh2 {[%emt 0:04:54] CPLX 2.0} 26. a4 {[%emt 0:01:21] BESTDEEP} Rh1+ {[%emt 0:02:23] BESTDEEP} 27. Kd2 {[%emt 0:00:06] EASY} Rxc1 {[%emt 0:00:20] CPLX 2.4} 28. Kxc1 {[%emt 0:00:06] RECAPT} bxa4 {[%emt 0:00:05] KB-KB. EASY} 29. Kd2 {[%emt 0:00:30] CPLX 2.0 0 (Kc1-c2) (=1)} Ke7 {[%emt 0:00:52] CPLX 2.0} 30. Kc3 {[%emt 0:01:09] CPLX 2.0} Be2 {[%emt 0:00:50] CPLX 2.0} 31. Kb4 {[%emt 0:02:02] CPLX 2.0} Ke6 {[%emt 0:00:44] CPLX 2.0} 32. Kxa4 {[%emt 0:01:01] CPLX 2.0 15 (Be5-c7) (=2)} Kf5 {[%emt 0:00:57] CPLX 2.0} 33. Kb4 {[%emt 0:00:17] CPLX 2.0} Kg4 {[%emt 0:01:30] Threatens to win with ...f5. CPLX 2.0} 34. f5 $1 {[%emt 0:00:05] DEEPSTRONG} Kxf5 {[%emt 0:00:16] CPLX 2.0} 35. Bb8 {[%emt 0:00:05] BESTDEEP} Kg4 {[%emt 0:00:35] CPLX 2.0 0 (Kf5-e4) (=1)} 36. b3 {[%emt 0:00:05] BESTDEEP} cxb3 {[%emt 0:00:11] EASY} 37. Kxb3 {[%emt 0:00:04] RECAPT} f5 {[%emt 0:00:14] CPLX 2.0 3 (Kg4-f3) (=1)} 38. Kc3 {[%emt 0:00:05] CPLX 2.0. The position is equal.} h5 {[%emt 0:00:06] CPLX 2.0 0 (Be2-f3) (=1)} 39. Kd2 {[%emt 0:00:03] CPLX 2.0 0 (Kc3-d4) (=1)} Ba6 {[%emt 0:00:14] CPLX 2.0 0 (Be2-c4) (=1)} 40. Ke3 {[%emt 0:00:08] An interesting draw.  Weighted Error Value: White=0.02 (flawless) /Black=0.01 (flawless)} 1/2-1/2

[Event "ESP-ch Teams Primera 2022"]
[Site "Sanxenxo Pontevedra"]
[Date "2022.09.19"]
[Round "3.8"]
[White "Salgado Lopez, Ivan"]
[Black "Krysa, Leandro"]
[Result "1-0"]
[ECO "C67"]
[WhiteElo "2595"]
[BlackElo "2535"]
[Annotator "TA"]
[PlyCount "67"]
[EventDate "2022.09.17"]
[EventType "team-tourn"]
[EventCountry "ESP"]
[SourceTitle "playchess.com"]
[Source "ChessBase"]
[SourceQuality "1"]
[TimeControl "5400+30"]

{[%evp 15,67,8,9,13,13,17,15,15,15,13,14,9,16,14,9,10,21,19,6,10,12,8,9,16,9,7,16,5,0,0,0,0,0,0,7,7,2,0,6,0,23,28,22,16,13,13,29,28,29,24,27,0,21,0]} 1. e4 e5 2. Nf3 Nc6 3. Bb5 Nf6 4. O-O {[%cal Bh1f1,Bf1e1,Be1e5][%mdl 32]} Nxe4 5. Re1 Nd6 {[%cal Be4d6,Bd6e8,Be8c7][%mdl 32]} 6. Nxe5 Be7 7. Bf1 Nxe5 8. Rxe5 O-O 9. Nc3 {C67: Ruy Lopez: Berlin Defence: 4 0-0 Nxe4.} Ne8 10. Nd5 Bd6 11. Re1 c6 ({Much less strong is} 11... Qh4 12. g3 Qd8 13. Ne3 $16) 12. Ne3 Be7 ({Don't take} 12... Qh4 13. g3 Qf6 14. d4 $16) 13. c4 Nc7 14. d4 d5 15. cxd5 Bb4 16. Bd2 Bxd2 17. Qxd2 {Black should prevent dxc6.} Nxd5 18. Nxd5 Qxd5 19. Re5 $5 {[%mdl 4] A promising side line.} Qd6 20. Bc4 {[%cal Bf1c4,Bc4b3,Bb3a2][%mdl 32]} Bd7 21. Rae1 b5 22. Bb3 a5 {[%cal Ba7a5,Ba5a4][%mdl 32]} 23. a3 a4 24. Ba2 {[#]} h6 $146 ({Predecessor:} 24... Rae8 25. Qf4 Rxe5 26. Rxe5 Be6 27. Bxe6 fxe6 28. Qe4 Re8 29. Rc5 Rd8 30. Rxc6 Qxd4 31. Qxe6+ Kh8 32. g3 h6 33. Rc8 Rxc8 34. Qxc8+ Kh7 35. Qf5+ {1-0 (35) Nepomniachtchi,I (2782)-Grischuk,A (2764) Warsaw 2021}) 25. h3 Rad8 26. Qe3 Rfe8 27. Qf4 Qf6 28. Qxf6 gxf6 29. Rxe8+ Bxe8 $11 {KRB-KRB} 30. Kf1 Kf8 31. Re4 Rb8 32. Rf4 Ke7 33. Re4+ Kf8 $1 34. Rf4 {[%mdl 32768] An interesting draw.  Weighted Error Value: White=0.02 (flawless) /Black=0.02 (flawless) . Loss on time!?} 1-0

[Event "ESP-ch Teams Primera 2022"]
[Site "Sanxenxo Pontevedra"]
[Date "2022.09.19"]
[Round "3.9"]
[White "Ushenina, Anna"]
[Black "Andersen, Mads"]
[Result "0-1"]
[ECO "D27"]
[WhiteElo "2439"]
[BlackElo "2597"]
[Annotator "TA"]
[PlyCount "102"]
[EventDate "2022.09.17"]
[EventType "team-tourn"]
[EventCountry "ESP"]
[SourceTitle "playchess.com"]
[Source "ChessBase"]
[SourceQuality "1"]
[TimeControl "5400+30"]

{[%evp 15,102,20,20,24,34,20,22,16,7,7,12,16,13,5,35,29,29,29,45,9,2,9,21,5,3,-13,20,0,43,2,10,0,0,-11,7,6,21,1,23,19,183,181,168,23,26,8,10,10,6,2,8,0,0,0,0,0,0,-8,-2,-4,0,-4,0,-5,-7,-19,-2,-2,-4,-24,-3,-24,-5,-20,-20,-156,-157,-146,-84,-93,-55,-174,-146,-656,-646,-29996,-29997,-29998,-29999]} 1. d4 {[%emt 0:00:54]} d5 {[%emt 0:00:08]} 2. c4 {[%emt 0:00:21]} dxc4 {[%emt 0:00:09]} 3. e3 {[%emt 0:00:33]} Nf6 {[%emt 0:00:14]} 4. Bxc4 {[%emt 0:00:43]} e6 {[%emt 0:00:16]} 5. Nf3 {[%emt 0:00:10]} c5 {[%emt 0:00:11]} 6. O-O {[%emt 0:00:06]} a6 {[%emt 0:00:09]} 7. b3 {[%emt 0:00:38]} Nbd7 {[%emt 0:00:37]} 8. Bb2 {[%emt 0:00:19]} Be7 {[%emt 0:00:42] BESTDEEP} 9. dxc5 {[%emt 0:03:40] BESTDEEP. D27: Queen's Gambit Accepted: Classical main line: 7 e4!? and 7 a4.} Bxc5 {[%emt 0:00:20] RECAPT} 10. Bd3 {[%emt 0:02:21] [#] CPLX 2.6 14 (Nb1-d2) (=7)} b6 $146 {[%emt 0:05:22] BESTDEEP} ({Predecessor:} 10... O-O 11. Nbd2 b6 12. Ne4 Be7 13. Qc2 g6 14. Rad1 Bb7 15. Ba1 Ra7 16. Qb2 Qa8 {0-1 (47) Zhak,B (2601)-Ruefenacht,M (2488) ICCF email 2015}) 11. Ng5 {[%emt 0:03:21] CPLX 2.2 6 (Qd1-e2) (=7). The position is equal.} Bb7 {[%emt 0:04:17] Inhibits Qf3. CPLX 2.7} 12. Nd2 {[%emt 0:06:37] CPLX 3.1} Be7 {[%emt 0:13:09] BESTDEEP} 13. Qe2 {[%emt 0:05:03] CPLX 3.1 0 (Ra1-c1) (=4)} Nc5 {[%emt 0:11:00] CPLX 3.1} 14. Bc2 {[%emt 0:01:25] BESTDEEP} ({Not} 14. Bc4 $2 b5 15. Rad1 (15. b4 $2 Na4 $19) 15... bxc4 $19) 14... h6 {[%emt 0:00:31] CPLX 3.3 30 (Nf6-d5) (=4)} (14... Nd5 $5 {[%cal Re7g5]} 15. Nge4 (15. Bxg7 Rg8 $17) 15... Nxe4 16. Bxe4 O-O $11) 15. Ngf3 {[%emt 0:00:06] EASY} b5 {[%emt 0:14:08] CPLX 2.6 0 (Ra8-c8) (=4)} 16. Rfd1 {[%emt 0:10:27][%cal Od2e4] BESTDEEP} (16. Rac1 {with more complications.} O-O 17. Ne5 Bd6 18. b4) 16... Ncd7 {[%emt 0:09:52] BESTDEEP} 17. Ne5 {[%emt 0:21:59] CPLX 2.3 36 (a2-a4) (=6)} Nxe5 {[%emt 0:04:09] CPLX 3.1} 18. Bxe5 {[%emt 0:00:24][%cal Od2c4] RECAPT} Qb6 {[%emt 0:04:35] BESTDEEP} 19. Nf3 {[%emt 0:05:19] MISSDEEP-Be5-d4 16 (Be5-d4) (=7)} (19. Bd4 $5 {[%cal Rd4b6]} Qc6 20. Nf3 $11) 19... Rc8 {[%emt 0:03:13] CPLX 2.6} 20. Bd4 {[%emt 0:09:48] Inhibits Qc5. CPLX 2.7 16 (Bc2-d3) (=7)} Bc5 {[%emt 0:03:55] CPLX 2.8 33 (Qb6-c7) (=5)} (20... Qc7 $5 {[%cal Rc7c2]} 21. Bd3 Ba3 $11) 21. Bb2 {[%emt 0:00:44] CPLX 2.5 20 (Bd4xf6) (=8)} Ke7 {[%emt 0:01:48] CPLX 2.5 43 (Bc5-b4) (=8)} 22. Rac1 {[%emt 0:03:38] CPLX 3.5 41 (Bc2-d3) (=11)} Rhd8 {[%emt 0:01:07] CPLX 3.5 8 (Bc5-d6) (=8)} 23. Rxd8 {[%emt 0:00:46] CPLX 3.8 10 (Bc2-d3) (=11)} (23. Bd3 {keeps more tension.} Bb4 24. Ne5 Rxc1 25. Rxc1 Qd6 26. Bd4) 23... Rxd8 {[%emt 0:04:03] RECAPT} 24. Bb1 {[%emt 0:02:29] CPLX 2.4 11 (Nf3-e5) (=11)} Ke8 {[%emt 0:05:48] CPLX 2.5 18 (Ke7-f8) (=8)} 25. h3 {[%emt 0:01:02] CPLX 2.4} Be7 {[%emt 0:01:21] CPLX 2.4 15 (Ke8-f8) (=8)} 26. Bd4 {[%emt 0:09:00] CPLX 2.4 20 (Nf3-e5) (=11)} Qd6 {[%emt 0:00:12] CPLX 2.7 22 (Qb6-a5) (=9)} 27. Ne5 {[%emt 0:02:48] BESTDEEP} Rc8 $2 {[%emt 0:05:08] RELBLUND 164 (Ke8-f8) (=17)} (27... Kf8 $11 {and Black stays safe.}) 28. Rxc8+ $18 {[%emt 0:03:37] EASY} Bxc8 {[%emt 0:00:02] [#] RECAPT} 29. Bd3 {[%emt 0:01:43] MISSDEEP-Bb1-g6 145 (Bb1-g6) (=16)} (29. Bg6 $1 $18 {[%cal Rg6f7][%mdl 512]}) 29... Kf8 {[%emt 0:04:27] MISS-Bc8-b7 3 (Bc8-b7) (=15)} 30. Qf3 {[%emt 0:01:59] CPLX 2.4 18 (Qe2-c2) (=16)} Qd5 {[%emt 0:00:31] Inhibits Qa8. CPLX 3.0} 31. Qxd5 {[%emt 0:00:31] CPLX 3.0 0 (Bd3-e2) (=15)} Nxd5 {[%emt 0:00:09] RECAPT} 32. a4 {[%emt 0:00:28] CPLX 2.0 4 (Bd3-e4) (=15)} Nb4 {[%emt 0:01:45] CPLX 2.0} 33. Be4 {[%emt 0:00:55] CPLX 2.0 8 (Bd3-f1) (=15)} Bd6 {[%emt 0:01:02] CPLX 2.0} 34. axb5 {[%emt 0:01:07] CPLX 2.0 0 (f2-f4) (=14)} axb5 {[%emt 0:00:03] RECAPT} 35. f4 {[%emt 0:01:40] BESTDEEP} f6 {[%emt 0:00:31] CPLX 2.0} 36. Nf3 {[%emt 0:00:45] CPLX 2.0 8 (Ne5-d3) (=13)} Ke7 {[%emt 0:00:52] CPLX 2.0 6 (Nb4-a6) (=12)} 37. Kf2 {[%emt 0:00:21] CPLX 2.0 2 (Nf3-e5) (=13)} g5 {[%emt 0:00:54] CPLX 2.0 4 (Nb4-a6) (=12)} 38. g3 {[%emt 0:00:15] CPLX 2.1 4 (Nf3-e5) (=13)} Bd7 {[%emt 0:00:29] CPLX 2.1 4 (Nb4-a6) (=11)} 39. h4 {[%emt 0:00:51] CPLX 2.0 5 (Nf3-e5) (=12)} g4 {[%emt 0:00:25] BESTDEEP} 40. Nd2 {[%emt 0:00:37] CPLX 2.1 12 (Nf3-e5) (=12)} e5 {[%emt 0:01:02] CPLX 2.0 17 (f6-f5) (=11)} 41. fxe5 {[%emt 0:00:14] CPLX 2.3} fxe5 {[%emt 0:00:16] RECAPT} 42. Bc3 {[%emt 0:01:06] CPLX 2.1 20 (Bd4-b2) (=12)} Be6 {[%emt 0:00:42] CPLX 2.0 21 (Nb4-c6) (=11)} 43. Ke2 {[%emt 0:00:20] CPLX 2.0 21 (Bc3-b2) (=12)} Na6 {[%emt 0:01:19] CPLX 2.0 19 (Nb4-d5) (=11)} (43... Nd5 $5 {[%cal Rd5c3]} 44. Bb2 b4 $11) 44. Bd3 {[%emt 0:00:30] CPLX 2.0 15 (Bc3-a5) (=13)} b4 {[%emt 0:00:41] CPLX 2.0} 45. Bb2 {[%emt 0:00:32] RELBLUND 136 (Bd3xa6) (=16)} (45. Bxa6 $11 bxc3 46. Ne4) 45... Nc5 $17 {[%emt 0:00:06] EASY} 46. Bc2 {[%emt 0:00:29] CPLX 2.1} Bd5 {[%emt 0:01:12] CPLX 2.0 62 (h6-h5) (=12)} (46... h5 $142 47. Bg6 Bf7 48. Bxf7 Kxf7) 47. e4 {[%emt 0:00:39] CPLX 2.0 9 (h4-h5) (=15)} Bc6 {[%emt 0:00:13] aiming for ...Bb5+. Black is more active. CPLX 2.1 38 (Bd5-f7) (=13)} 48. Ke3 {[%emt 0:00:28] CPLX 2.0 119 (Nd2-c4) (=18)} (48. Nc4 $15) 48... Bb5 $19 {[%emt 0:00:20] BESTDEEP} 49. Bd1 $2 {[%emt 0:00:26][%mdl 8192] MISSDEEP-Bb2-c1 400 (Bb2-c1) (=27)} (49. Bc1 $17) 49... Nd3 {[%emt 0:00:36] ( -> ...Bc5+). EASY} 50. Ba1 {[%emt 0:00:26] RELBLUND 400 (Nd2-f1) (=36)} Bc5+ {[%emt 0:00:09] EASY} 51. Ke2 {[%emt 0:00:05] RELBLUND 1 (Ba1-d4) (=35)} Nf4+ {[%emt 0:00:10] Black used his chance.  Weighted Error Value: White=0.43/Black=0.16 (very precise)} 0-1